Workbook

Sheet Location vehicules
A1: PLAN DE LOCATION VEHICULES CDM 2020
A5: Lots | B5: Activités | C5: Type de vehicules | D5: Nombre de Vehicules | E5: Zone à couvrir | G5: Distance à parcourrir | H5: Periode de location | J5: Nombre de jours
E6: Au depart de | F6: Itineraire | H6: Début | I6: Fin
A7: 1 | B7: Supervision | C7: 4 X 4 | D7: 1 | E7: Selibaby | F7: Selibaby (Capital 4 X 4) | G7: 1700 | J7: 12
B8: Supervision | C8: 4 X 4 | D8: 1 | E8: NkTT | F8: Nouak-Selibaby-Nouak | G8: 1640 | J8: 13
B9: Supervision | C9: 4 X 4 | D9: 2 | E9: Selibaby | F9: Selibaby | G9: 1200 | J9: 12
B10: Distribution | C10: PICK UP HILUX | D10: 15 | E10: Selibaby | F10: Selibaby | G10: 3000 | J10: 10
B11: Total Guidimahaga | D11: =SUM(D7:D10) -> 19 | G11: =SUM(G7:G10) -> 7540 | H11: =SUM(H7:H10) -> 0 | I11: 0 | J11: 47
A12: 2 | B12: Distribution | C12: PICK UP HILUX | D12: 6 | E12: Moudjriye | F12: Moudjriye | G12: 3000 | J12: 10
B13: Supervision | C13: 4 X 4 | D13: 2 | E13: Moudjriye | F13: Moudjriye | G13: 1200 | J13: 12
B14: Supervision | C14: Nat | D14: 1 | E14: NkTT | F14: Nouak-Moudjriye-Nouak | G14: 1200 | J14: 13
B15: Supervision | C15: 4 X 4 | D15: 1 | E15: Tidjikja | F15: Moudgeria-Tidjikja | G15: 1800 | J15: 12
B16: Supervision | C16: 4 X 4 | D16: 2 | E16: Tidjikja | F16: Tidjikja | G16: 1200 | J16: 12
B17: Consultant | C17: 4 X 4 | D17: 1 | E17: NkTT | F17: Tidikja-Moudjeria-NKTT | G17: =150*25 -> 3750 | J17: 25
B18: Supervision | C18: 4 X 4 | D18: 1 | E18: NkTT | F18: Nouak-Tidjikja-Nouak | G18: 1500 | J18: 13
B19: Supervision | C19: 4 X 4 | D19: 1 | E19: Tidjikja | F19: Tdjikja (Capital 4 X 4) | G19: 1500 | J19: 12
B20: Distribution | C20: PICK UP HILUX | D20: 4 | E20: Tidjikja | F20: Tidjikja | G20: 3000 | J20: 10
B21: Total Tagant | D21: =SUM(D12:D20) -> 19 | E21: 0 | F21: 0 | G21: 18150 | H21: 0 | I21: 0 | J21: 119
A22: 3 | B22: Formation FF | C22: 4 X 4 | D22: 1 | E22: NkTT | F22: Nouak-Aleg-Nouak | G22: 512 | J22: 4
B23: Formation LOG | C23: 4 X 4 | D23: 1 | E23: NkTT | F23: Nouak-Aleg-Nouak | G23: 520 | J23: 4
B24: Distribution | C24: PICK UP HILUX | D24: 11 | E24: Aleg | F24: Aleg | G24: 3000 | J24: 10
B25: Consultant | C25: 4 X 4 | D25: 1 | E25: NkTT | F25: Aleg-Kaedi-Selibaby-NKTT | G25: =150*25 -> 3750 | J25: 25
B26: Supervision | C26: Nat | D26: 1 | E26: NkTT | F26: Nouak-Aleg-Nouak | G26: 820 | J26: 13
B27: Supervision | C27: 4 X 4 | D27: 1 | E27: Aleg | F27: Aleg (Capital 4 X 4) | G27: 1500 | J27: 12
B28: Supervision | C28: 4 X 4 | D28: 2 | E28: Aleg | F28: Aleg | G28: 1200 | J28: 12
B29: Lancement | C29: 4 X 4 | D29: 1 | E29: NkTT | F29: Nktt-Aleg-Nktt | G29: 600 | J29: 2
B30: Total Brakna | D30: =SUM(D22:D29) -> 19 | E30: =SUM(E22:E29) -> 0 | F30: 0 | G30: 11902 | H30: 0 | I30: 0 | J30: 82
A31: 4 | B31: Supervision | C31: 4 X 4 | D31: 1 | E31: Kaedi | F31: Kaedi (Capital 4 X 4) | G31: 1500 | J31: 12
B32: Supervision | C32: 4 X 4 | D32: 2 | E32: Kaedi | F32: Kaedi | G32: 1200 | J32: 12
B33: Supervision | C33: 4 X 4 | D33: 1 | E33: NkTT | F33: Nouak-Kaedi-Nouak | G33: 1160 | J33: 13
B34: Distribution | C34: PICK UP HILUX | D34: 12 | E34: Kaedi | F34: Kaedi | G34: 3000 | J34: 10
B35: Total Gorgol | D35: =SUM(D31:D34) -> 16 | E35: =SUM(E31:E34) -> 0 | F35: 0 | G35: 6860 | H35: 0 | I35: 0 | J35: 47
A36: 5 | B36: Distribution | C36: PICK UP HILUX | D36: 11 | E36: Bakeol | F36: Bakeol | G36: 3000 | J36: 10
B37: Supervision | C37: 4 X 4 | D37: 2 | E37: Bakeol | F37: Bakeol | G37: 1200 | J37: 12
B38: Supervision | C38: Nat | D38: 1 | E38: NKTT | F38: NkTT- Barkeol-NkTT | G38: 1420 | J38: 13
B39: Distribution | C39: PICK UP HILUX | D39: 2 | E39: Boumdeid | F39: Boumdeid | G39: 3000 | J39: 10
B40: Supervision | C40: Nat | D40: 1 | E40: NKTT | F40: NkTT- Boumdei-NkTT | G40: 1700 | J40: 13
B41: Supervision | C41: 4 X 4 | D41: 2 | E41: Boumdeid | F41: Boumdeid | G41: 1200 | J41: 12
B42: Distribution | C42: PICK UP HILUX | D42: 3 | E42: Guerrou | F42: Guerrou | G42: 3000 | J42: 10
B43: Supervision | C43: 4 X 4 | D43: 2 | E43: Guerrou | F43: Guerrou | G43: 1200 | J43: 12
B44: Supervision | C44: 5 X 4 | D44: 1 | E44: NKTT | F44: NkTT- Gueroul-NkTT | G44: 1400 | J44: 13
B45: Distribution | C45: PICK UP HILUX | D45: 10 | E45: Kankossa | F45: Kankossa | G45: 3000 | J45: 10
B46: Supervision | C46: 4 X 4 | D46: 1 | E46: NKTT | F46: NkTT- Kankossa-NkTT | G46: 1700 | J46: 13
B47: Supervision | C47: 4 X 4 | D47: 2 | E47: Kankossa | F47: Kankossa | G47: 1200 | J47: 12
B48: Consultant | C48: 4 X 4 | D48: 1 | E48: NkTT | F48: Barkeole-Kiffa-boumdeid-Guerou-Kankossa-NKTT | G48: =150*25 -> 3750 | J48: 25
B49: Formation LOG | C49: 4 X 4 | D49: 1 | E49: NkTT | F49: Nouak- Kiffa-Nouak | G49: 1200 | J49: 4
B50: Formation SNIS | C50: 4 X 4 | D50: 1 | E50: NkTT | F50: Nouak- Kiffa-Nouak | G50: 1250 | J50: 4
B51: Formation FF | C51: 4 X 4 | D51: 1 | E51: NkTT | F51: Nouak-Kiffa-Nouak | G51: 1200 | J51: 4
B52: Supervision | C52: 4 X 4 | D52: 2 | E52: Kiffa | F52: Kiffa | G52: 1200 | J52: 12
B53: Supervision | C53: 4 X 4 | D53: 1 | E53: Kiffa | F53: Guerou-Barkeol-Kiffa | G53: 1900 | J53: 12
B54: Supervision | C54: 4 X 4 | D54: 1 | E54: Kiffa | F54: Boumdeid-Kiffa | G54: 1700 | J54: 12
B55: Supervision | C55: 5 X 4 | D55: 1 | E55: NKTT | F55: NkTT- Kiffa-NkTT | G55: 1500 | J55: 13
B56: Supervision | C56: 4 X 4 | D56: 1 | E56: Kiffa | F56: Kenkossa-Kiffa | G56: 1700 | J56: 12
B57: Distribution | C57: PICK UP HILUX | D57: 11 | E57: Kiffa | F57: Kiffa | G57: 3000 | J57: 10
B58: Total Assaba | D58: =SUM(D36:D57) -> 59 | E58: 0 | F58: 0 | G58: 41420 | H58: 0 | I58: 0 | J58: 248
A59: 6 | B59: Formation FF | C59: 4 X 4 | D59: 1 | E59: NkTT | F59: Nouak-Aioun-Nouak | G59: 1620 | J59: 4
B60: Formation LOG | C60: 4 X 4 | D60: 1 | E60: NkTT | F60: Nouak-Aioun-Nouak | G60: 1620 | J60: 4
B61: Consultant | C61: 4 X 4 | D61: 1 | E61: NkTT | F61: Ajoun, kobeni, Tamchaket, Tintane-NKTT | G61: =150*25 -> 3750 | J61: 25
B62: Supervision | C62: 4 X 4 | D62: 1 | E62: Aioun | F62: Kobenij-Aioun | G62: 1700 | J62: 12
B63: Supervision | C63: 4 X 4 | D63: 2 | E63: Aioun | F63: Aioun | G63: 1200 | J63: 12
B64: Supervision | C64: 4 X 4 | D64: 1 | E64: Aioun | F64: Tintane- Tamchekett-Aioun | G64: 1910 | J64: 12
B65: Distribution | C65: PICK UP HILUX | D65: 8 | E65: Aioun | F65: Aioun | G65: 3000 | J65: 10
B66: Distribution | C66: PICK UP HILUX | D66: 6 | E66: Tamchaket | F66: Tamchaket | G66: 3000 | J66: 10
B67: Supervision | C67: 4 X 4 | D67: 2 | E67: Tamchaket | F67: TAmchaket | G67: 1200 | J67: 12
B68: Distribution | C68: PICK UP HILUX | D68: 13 | E68: Tintane | F68: Tintane | G68: 3000 | J68: 10
B69: Supervision | C69: 4 X 4 | D69: 1 | E69: NKTT | F69: NKTT-Tintane-NKTT | G69: 1800 | J69: 13
B70: Supervision | C70: 4 X 4 | D70: 2 | E70: Tintane | F70: Tintane | G70: 1200 | J70: 12
B71: Supervision | C71: 4 X 4 | D71: 2 | E71: Kobeni | F71: Kobeni | G71: 1200 | J71: 12
B72: Distribution | C72: PICK UP HILUX | D72: 12 | E72: Kobeni | F72: Kobeni | G72: 3000 | J72: 10
B73: Total Elgarbi | D73: =SUM(D59:D72) -> 53 | E73: =SUM(E59:E72) -> 0 | F73: 0 | G73: 29200 | H73: 0 | I73: 0 | J73: 158
A74: 7 | B74: Supervision | C74: 4 X 4 | D74: 2 | E74: AMOURJ | F74: AMOURJ | G74: 1200 | J74: 12
B75: Distribution | C75: PICK UP HILUX | D75: 12 | E75: AMOURJ | F75: AMOURJ | G75: 3000 | J75: 10
B76: Distribution | C76: PICK UP HILUX | D76: 13 | E76: BassiKinou | F76: BassiKinou | G76: 3000 | J76: 10
B77: Supervision | C77: 4 X 4 | D77: 2 | E77: BassiKinou | F77: BassiKinou | G77: 1200 | J77: 12
B78: Supervision | C78: 4 X 4 | D78: 1 | E78: Bassikinou/Camp M'berra | F78: Bassikinou/Camp M'berra | G78: =50*12 -> 600 | J78: 12
B79: Distribution | C79: PICK UP HILUX | D79: 8 | E79: Djigueni | F79: Djigueni | G79: 3000 | J79: 10
B80: Supervision | C80: 4 X 4 | D80: 2 | E80: Djigueni | F80: Djigueni | G80: 1200 | J80: 12
B81: Formation FF | C81: 4 X 4 | D81: 1 | E81: NkTT | F81: Nouak-Nema-Nouak | G81: 2200 | J81: 4
B82: Formation LOG | C82: 4 X 4 | D82: 1 | E82: NkTT | F82: Nouak-Nema-Nouak | G82: 2200 | J82: 4
B83: Distribution | C83: PICK UP HILUX | D83: 10 | E83: Nema | F83: Nema | G83: 3000 | J83: 10
B84: Supervision | C84: 4 X 4 | D84: 2 | E84: Nema | F84: Nema | G84: 1200 | J84: 12
B85: Supervision | C85: 4 X 4 | D85: 1 | E85: Nema | F85: Amourj-Nema | G85: 1700 | J85: 12
B86: Consultant | C86: 4 X 4/MRT/CS | D86: 1 | E86: NkTT | F86: Nema,Oualata, Timbedra,Amourj, Bassikinu Mberra, Bassikinu-NKTT | G86: =150*25 -> 3750 | J86: 25
B87: Supervision | C87: 4 X 4 | D87: 1 | E87: Nema | F87: Bassiknou-Nema | G87: 2300 | J87: 12
B88: Supervision | C88: 4 X 4 | D88: 1 | E88: Nema | F88: Tembedra-Djigueni-Nema | G88: 1900 | J88: 12
B89: Supervision | C89: 4 X 4 | D89: 1 | E89: Nema | F89: N'beiket-Oualata-Nema | G89: 2000 | J89: 12
B90: Distribution | C90: PICK UP HILUX | D90: 2 | E90: Oualata | F90: Oualata | G90: 3000 | J90: 10
B91: Supervision | C91: 4 X 4 | D91: 2 | E91: Oualata | F91: Oualata | G91: 1200 | J91: 12
B92: Distribution | C92: PICK UP HILUX | D92: 10 | E92: Timbedra | F92: Timbedra | G92: 3000 | J92: 10
B93: Supervision | C93: 4 X 4 | D93: 2 | E93: Timbedra | F93: Timbedra | G93: 1200 | J93: 12
B94: Supervision | C94: 4 X 4 | D94: 2 | E94: Nbeikit | F94: Nbeikit | G94: 1200 | J94: 12
B95: Distribution | C95: PICK UP HILUX | D95: 2 | E95: Nbeikit | F95: Nbeikit | G95: 3000 | J95: 10
B96: Total Echarghi | D96: =SUM(D74:D95) -> 79 | E96: =SUM(E74:E95) -> 0 | F96: 0 | G96: 46050 | H96: 0 | I96: 0 | J96: 247
B97: TOTAL VEHICULE | D97: =D96+D73+D58+D35+D30+D21+D11 -> 264 | E97: 0 | F97: 0 | G97: 161122 | H97: 0 | I97: 0 | J97: 948

Sheet OUTILS DE GESTION (hidden)
B3: Besoins en outils /Équipements de la CDM
B4: Documents et outils | H4: Donnee de base
B5: Description: | C5: Unites: | D5: Quantite: | E5: Description et protocole | F5: Description pour impression | G5: Date probable de livraison | H5: Nombre d'equipe | I5: 1148
B6: Besoin Fiche de stock (photocopie) | C6: 1 | D6: =((2*I11)+(4*I9))*1.05 -> 2316.3 | E6: 2 fiches de stock pour chaque Moughataa et 4 fiches par centre et PS. | F6: 3 feuilles A4 recto | G6: 13 aout | H6: Nombre de volontaire | I6: =(I5*2)*1.1 -> 2525.6
B7: Bordereau de livraison | C7: 1 | D7: =(2*I11)*1.1 -> 46.2 | E7: 2 par Moughataa. 4 feuilles par bordereau. | F7: 25x4 feuillets autocopiant de 60g/m2 | G7: 13 aout | H7: Nombre de superviseurs de proximite | I7: =I6/3 -> 841.8666667
B8: Bon d'Approvisionnement des Equipes de Distribution | C8: 1 | D8: =(1*I5)*1.1 -> 1262.8 | E8: carnet par CS/PS. 3 feuilles par bordereau. | F8: 50x3 feuillets autocopiant de 60g/m3 | G8: 13 aout
B9: Besoin fiche d'evaluation des entrepots (photocopie) | C9: 1 | D9: =((2*I11)+(2*I9))*1.1 -> 1236.4 | E9: 2 entrepot par Moughataa et 2 par CS/PS | F9: 1 feuille A4 recto | G9: 13 aout | H9: Nombre de superviseurs centre de sante | I9: 541
B10: Fiche d'identification des circuits de ravitaillements des CS/PS | C10: 1 | D10: =(4*I11)*1.1 -> 92.4 | E10: 4 par Moughataa | F10: 1 feuille A4 recto | H10: Nombre de superviseurs Moughataas | I10: =21*2 -> 42 | J10: 2 superviseurs par Moughataas
B11: Fiche d'inventaire | C11: 1 | D11: =((I11*3)+(I9*3))*1.05 -> 1770.3 | E11: 3 fiches par Moughataa et par CS/PS | F11: 1 feuille A4 recto | G11: 13 aout | H11: Nombre de superviseurs Wilayas | I11: 21 | J11: 1 superviseur de wilayas par Moughataas
B12: Fiche de PV de reception | C12: 1 | D12: =((I11*3)+(I9*3))*1.05 -> 1770.3 | E12: 3 fiches par Moughataa et par CS/PS | F12: 1 feuille A4 recto | H12: Nombre de superviseurs du niveau national | I12: =2*7 -> 14 | J12: 2 superviseurs SLP par Wilayas
B13: Besoin fiche de contrat pour prestataire (photocopie) | C13: 1 | D13: PM | E13: Plus necessaire | H13: Nombre de village | I13: 1381
B14: Fiche de Distribution (nom du chef de menage, numero, nombre de personnes dans les menages ) | C14: 1 | D14: =(4*I5)*10*1.05 -> 48216 | E14: 4 fiches par jour par equipe de distribution (pour 35 menages en moyenne par jour) | F14: 1 feuille A4 recto | G14: 13 aout | H14: Nombre de Moughataa | I14: 22
B15: Fiche de synthese journaliere pour Superviseur de proximité | C15: 1 | D15: =2*I7*10*1.05 -> 17679.2 | E15: 2 fiches par superviseur de proximite par jour. | F15: 1 feuille A4 recto | G15: 13 aout | H15: Nombre de Wilaya | I15: 7
B16: Fiche de synthese journaliere pour Superviseur de CS/PS | C16: 1 | D16: =2*I9*10*1.05 -> 11361 | E16: 2 fiches par superviseur CS/PS par jour pour la distribution | F16: 1 feuille A4 recto | G16: 13 aout
B17: Besoin en modules de formation en logistique (1 par superviseur centre de sante ) | C17: 1 | D17: =((2*I11)+I9)*1.1 -> 641.3 | E17: 21 Moughataas et CS/PS. Module de 10 pages. | F17: 10 feuilles A4 recto | G17: 13 aout
B18: Aide mémoire pour distributeurs | C18: 1 | D18: =(I6+I7)*1.05 -> 3535.84 | E18: Aide mémoire de 3 pages | F18: 3 feuilles A4 recto | G18: 13 aout
B19: Aide mémoire pour mobilisateurs | C19: 1 | D19: =I6*20%*1.05 -> 530.376 | E19: Aide mémoire de 3 pages | F19: 3 feuilles A4 recto | G19: 13 aout
B20: Besoin Fiche de Pointage MILDA (photocopie) | C20: 1 | D20: PM | E20: Plus necessaire
B21: Besoin Fiches de Supervision Distribution (photocopie) | C21: 1 | D21: =((I10*2)+ (2*I12)+(I11*2))*10*1.05 -> 1617 | E21: 2 fiches par jour par superviseurs de , CS/PS, Moughataas/Wilayas/Central par jre X 10 jours | F21: 2 feuilles A4 recto | G21: 13 aout
B22: Fiche de collecte des donnees | C22: 1 | D22: PM | E22: 2 fiches par moughataas et wilayas par jour | F22: Version electronique
